Cogmind - Beta 11 @@@ ROGUE MODE // 2022.03.24 @ 14:03:10 Player: Happytimes Result: Destroyed by as-07946 with Assembled Rifle Performance ------------- Evolutions (0) 0 Regions Visited (2) 400 Robots Destroyed (10) 50 Value Destroyed (213) 213 Prototype IDs (1) 20 Alien Tech Used (0) 0 Bonus (0) 0 TOTAL SCORE: 683 Bonus ------- None Cogmind --------- Core Integrity 0/250 Matter 201/300 Energy 99/100 System Corruption 3% Temperature Cool (2) Movement Flying (37) Location -10/Mines Parts ------- > --- POWER (1) -------- (None) > --- PROPULSION (2) --- Improved Flight Unit Improved Flight Unit > --- UTILITY (2) ------ Small Storage Unit > --- WEAPON (2) ------- (None) > --- INVENTORY (8) ---- Flight Unit Flight Unit Improved Flight Unit Weight Redist. System EM Pulse Gun Light Assault Rifle Datajack Mining Laser Peak State ------------ > --- POWER ------------ Light Ion Engine > --- PROPULSION ------- Improved Flight Unit Improved Flight Unit > --- UTILITY ---------- Small Storage Unit Signal Interpreter > --- WEAPON ----------- EM Pulse Gun Datajack > --- INVENTORY -------- Aluminum Leg Aluminum Leg Aluminum Leg Improved Flight Unit Weight Redist. System Assault Rifle Light Assault Rifle Grenade Launcher [Rating: 12] Favorites ----------- Power Light Ion Engine Engine Light Ion Engine Propulsion Aluminum Leg Leg Aluminum Leg Flight Unit Improved Flight Unit Utility Small Storage Unit Storage Small Storage Unit Processor Signal Interpreter Weapon EM Pulse Gun Energy Gun EM Pulse Gun Ballistic Gun Assault Rifle Launcher Grenade Launcher Special Melee Weapon Datajack Build | -11 -10 -10 ------- Run | Scr Mat Min Slots Evolved . | . . . Power . | . . . Propulsion . | . . . Utility . | . . . Weapon . | . . . Parts Attached 14 | 6 5 3 Power 1 | 1 . . Engine 1 | 1 . . Core . | . . . Reactor . | . . . Propulsion 5 | 2 3 . Treads . | . . . Leg 3 | 2 1 . Wheel . | . . . Hover . | . . . Flight 2 | . 2 . Utility 2 | 1 1 . Device . | . . . Storage 1 | 1 . . Processor 1 | . 1 . Hackware . | . . . Protection . | . . . Artifact . | . . . Weapon 6 | 2 1 3 Energy Gun 2 | 1 . 1 Energy Cannon . | . . . Ballistic Gun 1 | 1 . . Ballistic Cannon . | . . . Launcher 2 | . . 2 Special Weapon . | . . . Impact Weapon . | . . . Slashing Weapon . | . . . Piercing Weapon . | . . . Special Melee Weapon 1 | . 1 . Unidentified Prototypes 1 | . 1 . Parts Lost 2 | . . 2 Power 1 | . . 1 Propulsion . | . . . Utility 1 | . . 1 Weapon . | . . . Highest Loss Streak 2 | . . 2 To Critical Strikes . | . . . Average Slot Usage (%) 81 | . 89 56 Engine 11 | . 14 5 Leg 17 | . 24 . Flight 9 | . 3 28 Storage 14 | . 14 14 Processor 5 | . 5 4 Energy Gun 11 | . 14 2 Ballistic Gun 6 | . 8 . Special Melee Weapon 3 | . 4 . Naked Turns . | . . . Heaviest Build 12 | 12 12 10 Greatest Support 20 | 20 20 10 Greatest Overweight (x) 2 | . 2 . Average Overweight (x) . | . . . Largest Inventory Capacity 8 | 8 8 8 Average Capacity 7 | 7 8 8 Most Carried 8 | 5 8 8 Average Carried 4 | 1 3 7 Final Capacity 8 | 8 8 8 Final Carried 8 | 1 8 8 Class Distribution -------------------- 100% | Mutant Dominant Class ---------------- Mutant | -10/Materials Mutant | -10/Mines Resources | -11 -10 -10 ----------- Run | Scr Mat Min Matter Collected 341 | 229 92 20 Remotely . | . . . Salvage Created 294 | . 252 42 Parts 17 | . 13 4 Haulers Intercepted 1 | . 1 . Recyclers Shooed . | . . . Parts Field Recycled . | . . . Retrieved Matter . | . . . Parts Self-Destructed . | . . . Prevented . | . . . Kills | -11 -10 -10 ------- Run | Scr Mat Min Combat Hostiles Destroyed 12 | . 4 8 Guns 1 | . 1 . AOE 11 | . 3 8 Classes Destroyed 6 | . 4 2 Hauler 1 | . 1 . Operator 1 | . 1 . Watcher 1 | . 1 . Swarmer 3 | . . 3 Grunt 4 | . 4 . Assembled 5 | . . 5 Best Kill Streak 8 | . 6 8 Combat Bots Only 8 | . 3 8 Max Kills in Single Turn 4 | . 4 4 Gunslinging . | . . . Exploded 4 | . 3 4 Melee . | . . . Uniques/NPCs Destroyed . | . . . Combat | -11 -10 -10 -------- Run | Scr Mat Min Damage Taken 590 | . 211 379 Core 264 | . 71 193 Absorbed by Shields . | . . . Core Remaining (%) 100 | 100 . . Volleys Fired 22 | . 16 6 Largest 2 | . 2 1 Hottest 60 | . 60 30 Shots Fired 37 | . 31 6 Gun 31 | . 31 . Cannon . | . . . Launcher 6 | . . 6 Special . | . . . Kinetic 15 | . 15 . Thermal . | . . . Explosive 6 | . . 6 Electromagnetic 16 | . 16 . Robot Hit Streak 6 | . 6 1 Robot Miss Streak 3 | . 2 3 Penetration Max . | . . . Secondary Targets . | . . . Shots Hit Robots 25 | . 24 1 Core Hits 32 | . 10 22 Critical Kills . | . . . Critical Parts Destroyed . | . . . Critical Strikes . | . . . Melee Attacks 2 | . 2 . Impact . | . . . Slashing . | . . . Piercing . | . . . Sneak Attacks 2 | . 2 . Combat Hostiles . | . . . Follow-up Attacks . | . . . Damage Inflicted 1085 | . 536 549 Guns 298 | . 298 . Cannons . | . . . Explosions 787 | . 238 549 Melee . | . . . Ramming . | . . . Kinetic 104 | . 104 . Thermal 238 | . 238 . Explosive 549 | . . 549 Electromagnetic 194 | . 194 . Impact . | . . . Slashing . | . . . Piercing . | . . . Highest Corruption 3 | . . 3 Average Corruption 3 | . . 3 Corruption Purged . | . . . Corruption Blocked . | . . . Effects 2 | . . 2 Matter Fused 1 | . . 1 Heat Flow Errors 1 | . . 1 Overload Shots . | . . . Overflow Damage 9 | . 3 6 Projectiles . | . . . Explosions 9 | . 3 6 Melee . | . . . Knockbacks . | . . . Impact . | . . . Kinetic . | . . . Secondary . | . . . Self-Inflicted Damage 56 | . 56 . Shots 1 | . 1 . Rammed . | . . . Targets Rammed . | . . . Kicked . | . . . Crushed . | . . . Highest Temperature 221 | . 99 221 Average Temperature 60 | . 42 104 Received Heat Transfer 127 | . 87 40 Siege Activations . | . . . Robots Corrupted . | . . . Combat Hostiles . | . . . Parts Fried 1 | . 1 . Impact Corruptions . | . . . Robots Melted . | . . . Combat Hostiles . | . . . Parts Melted 1 | . 1 . Heat Transferred 150 | . 150 . Parts Sabotaged . | . . . Parts Stolen . | . . . Parts Stripped . | . . . Power Chain Reactions 1 | . 1 . Missiles Intercepted . | . . . Alert | -11 -10 -10 ------- Run | Scr Mat Min Peak Influence 255 | . 232 255 Initial 31 | . . 31 Average 117 | . 118 186 Maximum Alert Level 1 | . 1 1 Low Security (%) 58 | 100 56 36 Level 1 41 | . 43 63 Level 2 . | . . . Level 3 . | . . . Level 4 . | . . . Level 5 . | . . . High Security . | . . . Max Security . | . . . Squads Dispatched 1 | . 1 . Investigation . | . . . Extermination . | . . . Reinforcement 1 | . 1 . Assault . | . . . Garrison . | . . . Intercept . | . . . Searches Triggered . | . . . Construction Impeded . | . . . Haulers Reinforced . | . . . Active Scanning Responses . | . . . Cargo Convoy Interrupts . | . . . Stealth | -11 -10 -10 --------- Run | Scr Mat Min Distress Signals 1 | . 1 . Communications Jammed . | . . . Distress Signals . | . . . Times Spotted 43 | . 9 34 Peak Tracking Total 10 | . 6 10 Tactical Retreats 4 | . 2 2 Traps | -11 -10 -10 ------- Run | Scr Mat Min Traps Triggered . | . . . Indirectly . | . . . Trap Hack Attempts . | . . . Triggered . | . . . Disarmed . | . . . Reprogrammed . | . . . Reused . | . . . Traps Extracted . | . . . Installed . | . . . Triggered . | . . . Machines | -11 -10 -10 ---------- Run | Scr Mat Min Machines Disabled . | . . . Max in Single Turn . | . . . Machines Sabotaged . | . . . Garrisons Compromised . | . . . Overloaded Fab Kills . | . . . Hacking | -11 -10 -10 --------- Run | Scr Mat Min Machines Accessed 4 | . 4 . Terminals 4 | . 4 . Fabricators . | . . . Repair Stations . | . . . Recycling Units . | . . . Scanalyzers . | . . . Garrison Access . | . . . Total Hacks 7 | . 7 . Successful 4 | . 4 . Failed 3 | . 3 . Catastrophic 1 | . 1 . Database Lockouts . | . . . Manual . | . . . Terminals 7 | . 7 . Fabricators . | . . . Repair Stations . | . . . Recycling Units . | . . . Scanalyzers . | . . . Garrison Access . | . . . Terminal Hacks 4 | . 4 . Alert Level 1 | . 1 . Unreport Threat 1 | . 1 . Recall Investigation 1 | . 1 . Zone Layout 1 | . 1 . Fabricator Hacks . | . . . Repair Station Hacks . | . . . Recycling Unit Hacks . | . . . Scanalyzer . | . . . Garrison Access Hacks . | . . . Unauthorized Hacks . | . . . Terminals . | . . . Fabricators . | . . . Repair Stations . | . . . Recycling Units . | . . . Scanalyzers . | . . . Garrison Access . | . . . Data Cores Recovered . | . . . Used . | . . . Hacking Detections 4 | . 4 . Full Trace Events . | . . . Feedback Events . | . . . Feedback Blocked . | . . . Robot Schematics Acquired . | . . . Robots Built . | . . . Authchips . | . . . Time . | . . . Total Robot Build Rating . | . . . Part Schematics Acquired . | . . . Parts Built . | . . . Authchips . | . . . Time . | . . . Total Part Build Rating . | . . . Parts Repaired . | . . . Time . | . . . Parts Recycled . | . . . Recycled Matter . | . . . Retrieved Matter . | . . . Retrieved Components . | . . . Parts Scanalyzed . | . . . Part Schematics Acquired . | . . . Parts Damaged . | . . . Bothacking | -11 -10 -10 ------------ Run | Scr Mat Min Used RIF Installer . | . . . Robots Hacked 1 | . 1 . Non-combat 1 | . 1 . Combat . | . . . Robot Hacks Applied 1 | . 1 . no_distress 1 | . 1 . Relay Couplers Released . | . . . Fabnet Peak Effective % . | . . . Robots Rewired . | . . . Allies Hacked . | . . . Hacks Repelled . | . . . Allies | -11 -10 -10 -------- Run | Scr Mat Min Total Allies . | . . . Largest Group . | . . . Highest-Rated Group . | . . . Highest-Rated Ally . | . . . Total Orders . | . . . Ally Attacks . | . . . Total Damage . | . . . Kills . | . . . Allies Corrupted . | . . . Allies Melted . | . . . Intel | -11 -10 -10 ------- Run | Scr Mat Min Robot Analysis Total . | . . . Derelict Logs Recovered . | . . . Drone Launches . | . . . Drone Recoveries . | . . . Exploration | -11 -10 -10 ------------- Run | Scr Mat Min Turns Passed 451 | 59 297 95 Spaces Moved 475 | 49 225 201 Core 17 | 17 . . Treads . | . . . Legs 192 | 32 160 . Wheels . | . . . Hover . | . . . Flight 266 | . 65 201 Fastest Speed 37 | 50 37 37 Average Speed 73 | 95 100 37 Slowest Speed 180 | 120 180 37 Overloaded Moves . | . . . Propulsion Burnouts . | . . . Robots Hopped 2 | . . 2 Cave-ins Triggered . | . . . Exploration Rate (%) 26 | 3 37 40 Regions Visited 2 Branch Regions 1 Pre-discovered Areas 1 | . . 1 Known Exits Taken 1 | . 1 . Unknown Exits Taken 1 | 1 . . Scrap Searched . | . . . Spaces Dug . | . . . Terrain Destroyed 54 | . 5 49 Melee . | . . . Projectile . | . . . AOE 54 | . 5 49 Terrain Rammed . | . . . Walls Destroyed . | . . . Machines Disabled . | . . . Actions | -11 -10 -10 --------- Run | Scr Mat Min Total 536 | 60 263 213 Wait 1 | . 1 . Move 469 | 48 224 197 Hop 2 | . . 2 Pick Up 18 | 6 10 2 Fast Attach 2 | 1 1 . Attach 6 | 5 1 . Detach 1 | . 1 . Swap 6 | . 3 3 Drop 7 | . 4 3 Fire 22 | . 16 6 Melee 2 | . 2 . Ram . | . . . Kick . | . . . Crush . | . . . Escape Stasis . | . . . Rewire . | . . . Trap . | . . . Miscellaneous . | . . . Route ------- -11/Scrapyard -10/Materials (discovered 2 exits: *Mat / *Min) -10/Mines History --------- Turn | Location | Event 2 | -11/Scrapyard | Discovered new exit (range 16) 60 | -11/Scrapyard | Entered Materials 244 | -10/Materials | Discovered new exit (range 8) 252 | -10/Materials | Identified exit to Materials 346 | -10/Materials | Discovered new exit (range 15) 352 | -10/Materials | Identified exit to Mines 357 | -10/Materials | Build established: Mutant 357 | -10/Materials | Entered Mines 371 | -10/Mines | Assembled infested the area 389 | -10/Mines | Core integrity fell below 50% 399 | -10/Mines | Core integrity fell below 20% 406 | -10/Mines | Destroyed 8 combat bots 444 | -10/Mines | Learned location of Storage (-8) 452 | -10/Mines | Destroyed by as-07946 with Assembled Rifle Last Messages --------------- 00389_ K-01 Serf collects debris. 00392_ U-05 Engineer lays Concrete. 00393_ U-05 Engineer builds a Wall. 00396_ as-15277 destroyed. 00396_ R-06 Scavenger destroyed. 00397_ Lgt. Ion Engine destroyed. 00401_ Acquired 14 matter. 00401_ R-06 Scavenger destroyed. 00411_ K-01 Serf cleans the Seismic Survey Station. 00418_ K-01 Serf collects debris. 00429_ Seismic Survey Station disabled. 00437_ System corrupted: Heat flow error (+238). 00444_ A derelict emerges from the shadows: "Are any of them following you? I'm here trying to lose some heat after our second raid on Storage failed. Whatever you do stay away from that place, they've tightened security following our previous successful raids." World map updated: -8/Storage. 00446_ 4U-FAY(g): "We scattered so the Unaware couldn't effectively use their advantage in numbers, and I suggest you do the same." 00446_ 4U-FAY(g) slips back into the shadows. Map ----- +----------------------------------------------------+ | | | | | | | | | | | | | | | ?????????????????????????????????????????????????? | | ?????????????????????????????????????????????????? | | ?????????????????????????????????????????????????? | | ???????????????????????????????################### | | ???????###?????????????????????# | | ??????## ##???????????????????# | | ??????# ##??????????????????# | | ??????# #??????????????????# """ """ """ """ " | | ???????# #??????????????????# """ """ """ """ " | | ???????# #################### """ """ """ """ " | | ???????## ! | | ????????## a #######%""" """ """ """ " | | ?????????##############aa#?????#= "" """ """ "" " | | ??????????????????????# #?????# """ """ """ """ " | | ?????????????????????##a #?????# | | ?????????????????????# ##????# | | ?????????????????????# #????################### | | ?????????????????????# #??????????????????????? | | ???????????#######???# @#??????????????????????? | | ??????????## ##?##% ########???????????????? | | ??????????# #?#d ???????????? | | ??????????# ### !%=#####??????????????????? | | ???????????# =| d ##??????????????????????? | | ???????????###!####### #???????????????????????? | | ?????????????# #?????# #??????????????????????? | | ?????????????#=###??? #?????????????????????? | | ???????# #####!% ##?# #?????????????????????? | | ???????# =%=! #?## ????????????????????? | | ???????######%%! #??## ???????????????????? | | ????????????## ##??#########??????????????????? | | ????????????### #?????????????????????????????? | | ????????????# #?????????????????????????????? | | ???????????# ##?????????????????????????????? | | ???????????## ##??????????????????????????????? | | ???????###### #???????????????????????????????? | | ???????# ###???????????????????????????????? | | ???????# #??????????????????????????????????? | | ???????# " % ##?????????????????????????????????? | | ???????# % #?????????????????????????????????? | | ???????# ##?????????????????????????????????? | | ???????## ###????????????????????????????????? | | ????????# #????????????????????????????????? | | ???##### = # #????????????????????????????????? | +----------------------------------------------------+ Best States ------------- Heat Dissipation 25 Energy Generation 10 Energy Capacity 125 Matter Stores 286 Matter Capacity 300 Sight Range 16 Terrain Scan Density 10 Evasion (%) 62 Item Schematics ----------------- None Robot Schematics ------------------ None Fabricated ------------ Nothing Alien Tech Used ----------------- None Achievements -------------- None Challenges ------------ None Game ------ Seed ImprovedShadeBox Manual? 0 Play Time 00:07:40 Cumulative 37.1 hours Start 2022.03.24 @ 13:57:43 End 2022.03.24 @ 14:03:10 Sessions 1 Manual Loads 0 Difficulty Rogue Special Mode None Game No. 112 Rogue 112 Adventurer 0 Explorer 0 Win Type - Total 0 Types 0/0/0/0/0/0/0/0/0 Lore% 31 Gallery% 44 Achievement% 33 Wizard Run 0 Options --------- ASCII 0 Keyboard 0 Movement Mouse Keybinds 0 Fullscreen 1 Font 18/SmallcapsGlow Map View 76x50 Tactical HUD 1 Map Filters NONE Filters NONE Steam 1 RUN: 38e05de5-2219-48cd-8628-11bc595ef696